bitfinex/quotes_ETHUSD_20241203
["timestamp","ask_amount","ask_price","bid_price","bid_amount"]
[1733243027875,0.55,3579.8,3579.1,2.94942]
[1733243028081,0.55,3579.6,3579.1,2.79398]
[1733243028373,0.55,3579.4,3578.5,3.07667832]
[1733243028574,0.20878465,3579.3,3578.7,2.79427]
[1733243028877,0.55,3579.2,3578.5,0.31017969]
[1733243029175,1.5385,3579.5,3579.0,2.79406]
[1733243029176,0.55,3579.4,3579.0,2.79406]
[1733243029343,0.75877659,3579.4,3579.0,2.79406]
[1733243029544,0.55,3579.4,3578.6,2.82229003]
[1733243029770,0.03016844,3579.3,3578.8,2.79423]
[1733243029949,0.03016844,3579.3,3579.2,2.79389]
[1733243030169,0.55,3579.4,3579.2,2.79389]
[1733243030493,1.5385,3579.5,3579.2,2.79389]
[1733243030671,0.03016844,3579.3,3579.2,2.79389]
[1733243030846,1.87156945,3579.8,3579.2,0.279389]
[1733243031172,3.0,3580.3,3579.6,2.7936]
[1733243031173,1.6628,3580.3,3579.6,2.7936]
[1733243031395,0.20874649,3580.2,3579.5,2.79368]
[1733243031529,0.20874649,3580.1,3579.5,2.79368]
[1733243031731,0.23914808,3580.0,3579.2,0.279389]
[1733243031976,0.03040159,3580.0,3579.2,3.073279]
[1733243032148,1.5049,3579.8,3579.0,2.79405]
[1733243032342,0.20876297,3579.7,3578.6,2.79433]
[1733243032544,0.20876297,3579.6,3578.9,2.79413]
[1733243032743,0.20876297,3579.5,3578.9,2.79413]
[1733243032945,0.20876297,3579.4,3578.9,0.55]
[1733243033160,0.03020345,3579.3,3579.0,2.79404]
[1733243033359,0.20876297,3579.4,3579.0,3.128444]
[1733243033567,1.5049,3579.8,3579.1,2.79398]
[1733243033750,0.20882658,3579.7,3578.6,0.55]
[1733243033972,7.56386912,3579.6,3578.5,3.07663832]
[1733243034152,0.20882897,3579.5,3578.5,3.07663832]
[1733243034356,0.20882897,3579.4,3578.5,3.07663832]
[1733243034640,1.5299,3579.1,3577.8,4.36626]
[1733243034841,0.65743019,3579.4,3576.8,1.21854419]
[1733243034842,1.5299,3578.7,3577.9,2.79493]
[1733243035077,1.73872897,3578.7,3577.2,2.79548]
[1733243035261,0.02986431,3578.6,3578.0,2.79482]
[1733243036050,0.02986431,3578.6,3578.0,2.79478]
[1733243036372,0.02986431,3578.6,3578.1,2.79475]
[1733243037228,0.02986431,3578.6,3578.2,3.34468]
[1733243037593,0.02986431,3578.6,3578.2,0.02794635]
[1733243037750,0.02986431,3578.6,3578.5,3.34446]
[1733243038094,1.82484039,3579.5,3579.0,0.55]
[1733243038246,0.20874039,3579.4,3579.2,0.55]
[1733243038459,0.23846713,3579.4,3579.2,0.55]
[1733243038660,0.23846713,3579.4,3578.4,1.5053]
[1733243038661,0.02972674,3579.4,3579.3,2.79384]
[1733243038965,1.6161,3579.9,3579.4,2.79369]
[1733243039157,1.6161,3579.9,3579.5,2.79365]
[1733243039777,0.2386956,3579.8,3579.5,2.79365]
[1733243040395,0.02995521,3579.8,3579.5,2.79365]
[1733243040601,0.02995521,3579.8,3579.2,2.79388]
[1733243040805,0.02995521,3579.8,3579.4,2.79369]
[1733243040960,1.6161,3579.9,3579.5,2.79363]
[1733243041158,0.02993579,3579.7,3579.5,2.79363]
[1733243041493,1.6161,3579.9,3579.2,0.429918]
[1733243041494,1.6161,3579.9,3579.3,2.79382]
[1733243041994,0.02999868,3579.8,3579.2,2.79385]
[1733243042213,0.21548259,3579.8,3578.6,2.0714]
[1733243042572,1.5833,3579.5,3578.6,2.79432]
[1733243042907,1.5833,3579.5,3578.2,2.7947]
[1733243043202,0.03013479,3579.4,3579.3,2.79384]
[1733243043555,1.81849657,3580.0,3579.4,2.79374]
[1733243043761,2.20790597,3580.0,3579.4,2.79374]
[1733243044062,2.20790597,3580.0,3578.8,1.5193]
[1733243044271,1.81849657,3580.0,3579.4,2.79373]
[1733243044598,1.6098,3580.0,3579.1,0.55]
[1733243044879,1.6098,3580.0,3579.2,0.55]
[1733243044991,1.81849657,3580.0,3579.5,2.79368]
[1733243045185,1.6098,3580.0,3579.5,2.79368]
[1733243045408,1.6098,3580.0,3579.4,2.79371]
[1733243045592,1.6098,3580.0,3578.9,3.34414]
[1733243045593,1.86259657,3580.3,3580.0,2.79329]
[1733243045805,1.6539,3580.3,3580.0,2.79329]
[1733243046234,1.6539,3580.3,3580.2,2.79314]
[1733243046732,1.6539,3580.3,3580.0,0.55]
[1733243047034,1.6539,3580.0,3578.7,0.55]
[1733243047240,1.86259657,3579.9,3578.3,1.5614]
[1733243047447,7.68787912,3579.6,3578.5,2.79441]
[1733243047731,0.20869657,3579.5,3578.3,1.5614]
[1733243048143,0.20869657,3579.4,3578.5,2.79443]
[1733243048298,1.76039657,3579.3,3578.0,1.805678]
[1733243048511,0.20869657,3579.2,3578.7,2.7943]
[1733243048737,1.76039657,3579.3,3578.6,2.79437]
[1733243048940,1.76039657,3579.3,3578.7,2.7943]
[1733243049136,1.5517,3579.3,3578.7,2.79424]
[1733243049315,1.5517,3579.3,3578.0,1.805678]
[1733243049316,0.20869657,3579.2,3578.0,1.805678]
[1733243049674,0.20869657,3579.2,3578.5,2.7944]
[1733243049945,0.20869657,3579.1,3578.1,0.55]
[1733243050146,0.20869657,3579.2,3578.6,2.79438]
[1733243050442,0.20869657,3579.2,3578.1,0.55]
[1733243050443,0.20869657,3579.1,3578.7,2.79428]
[1733243050598,0.20869657,3579.2,3578.7,2.79428]
[1733243050798,0.23860147,3579.1,3578.1,0.55]
[1733243051110,0.20869657,3579.0,3578.3,0.55]
[1733243051442,0.02978517,3578.9,3578.3,3.34459]
[1733243051638,0.02978517,3578.9,3578.2,0.55]
[1733243051796,0.20915786,3579.1,3578.2,0.55]
[1733243051994,1.5517,3579.3,3578.4,2.7945]
[1733243051995,0.02973149,3578.8,3578.4,2.7945]
[1733243052231,1.5517,3579.3,3578.9,2.79415]
[1733243052465,1.5517,3579.3,3579.2,2.79392]
[1733243052809,1.76593953,3579.7,3579.3,2.79381]
[1733243053005,0.20913953,3579.6,3578.8,0.55]
[1733243053212,1.5568,3579.1,3577.9,1.5103]
[1733243053511,0.68888597,3579.0,3577.6,1.6152]
[1733243053818,1.75056906,3578.9,3578.2,2.79469]
[1733243054045,1.5414,3578.9,3578.2,2.79469]
[1733243054205,0.02964877,3578.8,3578.3,2.79459]
[1733243054411,0.23879998,3578.8,3578.0,2.79483]
[1733243054637,0.3,3578.5,3576.8,0.55]
[1733243054819,1.503,3578.2,3576.8,0.55]
[1733243055028,1.503,3578.2,3575.7,0.43710272]
[1733243055029,0.1,3578.0,3577.2,2.79547]
[1733243055247,0.1,3577.8,3576.3,3.24036912]
[1733243055528,0.1,3577.8,3577.5,2.79521]
[1733243055850,0.02923727,3577.7,3577.5,2.79521]
[1733243056195,0.1,3577.8,3577.6,2.79516]
[1733243056361,0.1,3577.8,3576.4,0.60366691]
[1733243056657,0.02944014,3577.7,3577.6,2.7951]
[1733243056944,0.1,3577.8,3577.6,2.7951]
[1733243057130,0.1,3577.8,3577.7,2.79508]
[1733243057719,1.703,3578.2,3577.7,2.79508]
[1733243058323,0.1,3578.0,3577.7,2.79508]
[1733243058730,1.703,3578.2,3577.8,2.79493]
[1733243058946,1.503,3578.2,3577.8,2.79493]
[1733243059113,0.1,3578.3,3577.9,2.79491]
[1733243059611,0.1,3578.3,3578.2,2.7947]
[1733243060030,0.1,3578.3,3577.7,0.279508]
[1733243060232,0.1,3578.3,3577.9,2.79488]
[1733243060443,0.1,3578.3,3578.0,2.79481]
[1733243060666,0.1,3578.3,3577.9,2.79486]
[1733243060880,0.1,3578.3,3577.3,1.5868]
[1733243061039,0.29166778,3578.2,3577.3,1.5868]
[1733243061255,0.29166778,3578.2,3577.9,2.79491]
[1733243061456,0.02847563,3578.1,3577.9,2.79491]
[1733243061881,0.02847563,3578.1,3577.4,0.15868]
[1733243062045,1.7165,3578.0,3577.4,2.79532]
[1733243062248,0.1,3577.8,3576.5,4.44718]
[1733243062591,4.95686912,3578.0,3576.5,4.44718]
[1733243062592,1.5659,3577.3,3576.7,2.79585]
[1733243063044,0.32828787,3577.2,3576.5,2.796]
[1733243063252,0.32828787,3577.2,3576.4,0.60366691]
[1733243063253,0.2,3577.0,3575.8,4.44772]
[1733243063455,0.3,3576.8,3576.1,2.79628]
[1733243063646,1.5659,3576.7,3575.9,0.444772]
[1733243063849,1.59436181,3576.7,3576.2,2.7962]
[1733243064236,1.59436181,3576.7,3575.9,0.444772]
[1733243064237,1.59436181,3576.7,3576.0,2.79634]
[1733243064583,0.3,3576.6,3575.9,3.241252]
[1733243064872,0.3,3576.6,3575.5,1.6512]
[1733243064873,0.3,3576.6,3576.0,2.7964]
[1733243065089,0.3,3576.3,3575.5,1.6512]
[1733243065247,0.3,3576.3,3574.7,4.35974412]
[1733243065248,0.3,3576.3,3574.8,0.02796385]
[1733243065501,0.02840837,3576.2,3575.7,2.79664]
[1733243065835,0.3,3576.3,3575.7,2.79664]
[1733243066073,1.6517,3576.2,3575.8,2.79657]
[1733243066236,1.68006191,3576.2,3575.8,2.79657]
[1733243066454,1.68006191,3576.2,3575.0,1.5573]
[1733243066695,0.02836191,3576.2,3576.1,2.79634]
[1733243066973,1.677,3577.1,3576.7,2.79586]
[1733243067290,1.16256309,3578.0,3575.9,0.57796108]
[1733243067291,1.777,3577.4,3577.1,2.79555]
[1733243067505,1.577,3577.4,3576.4,0.55]
[1733243067671,1.577,3577.4,3577.2,2.79547]
[1733243068200,1.577,3577.4,3577.0,2.79561]
[1733243068919,1.5211,3577.7,3577.0,0.614142]
[1733243069214,0.12778858,3577.6,3577.2,2.79542]
[1733243069803,0.12778858,3577.6,3577.3,2.7954]
[1733243070119,0.02778858,3577.6,3577.4,2.79531]
[1733243070267,0.02778858,3577.6,3577.0,0.55]
[1733243070268,0.02778858,3577.6,3577.2,2.79545]
[1733243070473,0.02778858,3577.6,3577.5,2.79524]
[1733243070662,0.02778858,3577.6,3577.5,3.07755929]
[1733243071133,1.6661,3578.1,3577.8,2.79498]
[1733243071292,1.6661,3578.1,3577.9,2.79487]
[1733243071493,0.02705917,3578.0,3577.9,2.79487]
[1733243072479,0.43617263,3578.2,3578.0,2.79483]
[1733243073081,0.43617263,3578.2,3578.1,2.79477]
[1733243073497,0.29166778,3578.2,3578.1,2.79477]
[1733243075964,0.31886298,3578.2,3578.1,2.79477]
[1733243076812,0.29166778,3578.2,3578.1,4.96097]
[1733243077013,0.27415805,3578.2,3578.1,5.73936136]
[1733243077170,8.05e-06,3578.2,3578.1,5.73936136]
[1733243077375,8.05e-06,3578.2,3578.1,5.76730041]
[1733243078412,0.1,3579.6,3579.5,2.79368]
[1733243078712,0.1,3579.7,3579.6,2.79353]
[1733243078917,1.5239,3580.0,3579.9,2.79337]
[1733243079127,0.02675239,3579.7,3579.3,0.0279353]
[1733243079286,1.5762,3580.3,3580.1,2.79321]
[1733243079485,0.1,3580.4,3580.2,2.79314]
[1733243079707,0.1,3580.5,3580.4,2.79298]
[1733243080010,0.20832664,3581.1,3579.7,1.5074]
[1733243080011,0.1,3580.8,3580.0,0.02792922]
[1733243080220,0.1,3580.8,3580.7,2.79275]
[1733243080383,1.7762,3581.1,3580.8,2.79259]
[1733243080573,1.7762,3581.1,3580.9,2.79259]
[1733243080769,0.2,3581.1,3580.9,2.79259]
[1733243081012,0.49150922,3581.1,3580.4,1.5074]
[1733243081375,0.49150922,3581.1,3580.8,2.79265]
[1733243081814,0.29150922,3581.1,3580.5,0.02792555]
[1733243082033,0.29150922,3581.1,3581.0,2.79251]
[1733243082414,0.29150922,3581.1,3580.4,4.30033]
[1733243082415,0.29150922,3581.1,3580.7,2.79267]
[1733243083215,0.02528681,3581.0,3579.5,1.5315]
[1733243083537,1.5425,3580.5,3579.9,2.7933]
[1733243083717,0.48425,3580.4,3579.6,2.79355]
[1733243084017,0.48425,3580.4,3579.7,2.79349]
[1733243084018,0.51039581,3580.4,3579.7,2.79349]
[1733243084187,3.75076493,3580.4,3579.1,1.5315]
[1733243084393,0.2,3580.0,3579.1,1.5315]
[1733243084592,0.1,3579.9,3579.3,2.79382]
[1733243084936,0.02591879,3579.8,3579.3,2.79382]
[1733243085123,0.02591879,3579.8,3579.2,0.0279354]
[1733243085296,0.02591879,3579.8,3579.5,2.79365]
[1733243086315,0.02591879,3579.8,3579.3,2.79377]
[1733243086639,0.02532416,3579.7,3579.4,2.79371]
[1733243086805,0.02532416,3579.7,3579.5,2.79365]
[1733243087003,0.1,3579.9,3579.5,2.79365]
[1733243087203,0.1,3579.9,3579.3,2.79383]
[1733243087398,0.02534365,3579.8,3579.2,0.55]
[1733243088111,0.3,3580.2,3579.2,0.55]
[1733243088322,0.0253133,3579.7,3579.6,2.7936]
[1733243088622,0.1,3580.2,3579.5,2.79367]
[1733243088623,0.2,3580.0,3579.5,2.79367]
[1733243088997,0.02607887,3579.9,3578.7,1.5973]
[1733243089308,1.5312,3579.6,3578.7,1.5973]
[1733243089708,0.02598481,3579.5,3578.7,1.5973]
[1733243089910,0.02598481,3579.5,3578.7,4.830774]
[1733243090105,0.02598481,3579.5,3578.7,2.036464]
[1733243090438,1.7312,3579.6,3578.7,1.5973]
[1733243090933,1.75738284,3579.6,3578.7,1.5973]
[1733243091635,1.7312,3579.6,3578.7,1.5973]
[1733243091820,1.7312,3579.6,3578.4,1.5289]
[1733243092027,1.7312,3579.6,3578.5,0.55]
[1733243092196,1.7312,3579.6,3578.7,0.55]
[1733243093916,1.75738284,3579.6,3578.7,0.55]
[1733243094133,1.7312,3579.6,3578.7,0.55]
[1733243094553,1.7312,3579.6,3578.7,3.34431]
[1733243094724,0.2,3580.4,3579.4,2.79369]
[1733243094923,1.5006,3580.6,3579.5,3.34368]
[1733243094924,0.02618284,3579.6,3579.5,3.34368]
[1733243095218,1.5006,3580.9,3579.6,0.55]
[1733243095420,1.5006,3580.9,3580.2,2.79311]
[1733243095610,0.0263119,3580.8,3580.3,0.55]
[1733243096444,0.29127759,3580.7,3580.3,3.34305]
[1733243096614,0.29127759,3580.7,3580.3,0.55]
[1733243096813,0.29127759,3580.7,3579.5,1.5224]
[1733243097155,0.29127759,3580.7,3579.8,0.55]
[1733243097309,0.02484739,3580.6,3579.8,3.34343]
[1733243097510,0.02484739,3580.6,3579.8,3.830013]
[1733243097855,0.02484739,3580.6,3579.8,0.486583]
[1733243098147,0.02484739,3580.6,3579.5,1.5224]
[1733243098330,0.1,3580.3,3579.7,2.79346]
[1733243098551,1.6397,3580.2,3579.4,2.79371]
[1733243098735,1.6397,3580.2,3578.8,0.39434894]
[1733243098736,0.2,3580.1,3578.9,1.5863]
[1733243098901,0.2,3580.1,3579.1,2.79399]
[1733243099103,0.02499228,3580.0,3579.0,0.23482243]
[1733243099435,0.02499228,3580.0,3579.5,2.79367]
[1733243100047,0.02486222,3579.9,3579.5,2.79367]
[1733243100247,0.02486222,3579.9,3579.0,0.23482243]
[1733243100562,0.1,3580.0,3579.3,2.79376]
[1733243100852,0.14532191,3579.8,3579.3,2.79376]
[1733243101022,0.44532191,3579.8,3578.5,1.5585]
[1733243101252,0.2,3579.5,3578.5,1.5585]
[1733243101570,0.2,3579.4,3578.6,0.1837884]
[1733243101778,0.22468878,3579.4,3578.6,0.15585]
[1733243102169,0.22468878,3579.4,3578.8,2.79417]
[1733243102342,0.22468878,3579.4,3578.6,0.15585]
[1733243102543,0.22468878,3579.4,3578.2,0.57793869]
[1733243102859,0.22468878,3579.4,3578.7,2.79428]
[1733243103069,0.2,3579.4,3578.4,2.79449]
[1733243103270,0.2,3579.4,3578.8,2.79422]
[1733243103485,0.2,3579.4,3578.7,2.79429]
[1733243103779,0.02465843,3579.3,3578.6,2.79432]
[1733243104081,0.02465843,3579.3,3578.7,2.7943]
[1733243104286,0.02465843,3579.3,3578.2,0.55]
[1733243104578,0.2,3578.9,3577.6,1.7112]
[1733243104788,1.5755,3579.2,3578.5,2.79446]
[1733243105037,0.2,3578.9,3578.3,2.7946]
[1733243105183,1.7755,3579.2,3578.4,2.79453]
[1733243105352,1.5755,3579.2,3578.4,2.79453]
[1733243105546,2.28792232,3579.2,3578.6,2.79437]
[1733243105760,2.28792232,3579.2,3579.1,2.79399]
[1733243105761,0.02618114,3579.2,3579.1,2.79399]
[1733243105974,0.02618114,3579.2,3579.1,3.34399]
[1733243106167,1.56,3579.9,3579.5,2.79362]
[1733243106482,0.2083541,3579.8,3579.2,2.7939]
[1733243106707,0.20859559,3579.8,3579.2,0.27939]
[1733243106892,1.76859559,3579.9,3579.3,0.57793457]
[1733243107101,1.56,3579.9,3579.6,2.79355]
[1733243107248,1.56,3579.9,3579.7,2.7935]
[1733243107451,1.76859559,3579.9,3579.7,2.7935]
[1733243107752,1.56,3579.9,3579.7,2.7935]
[1733243107951,1.56,3579.9,3579.8,2.79345]
[1733243108149,0.20859559,3580.0,3579.2,0.55]
[1733243108458,0.20859559,3580.1,3580.0,2.79329]
[1733243109701,0.2,3580.6,3580.0,2.79329]
[1733243109702,0.20859559,3580.3,3580.2,2.79314]
[1733243109865,1.5681,3580.8,3580.3,0.55]
[1733243110192,0.20871521,3580.8,3580.6,2.79282]
[1733243110401,0.20870449,3581.1,3580.6,2.79282]
[1733243110580,7.59e-06,3580.7,3580.6,3.34282]
[1733243110788,7.59e-06,3580.7,3580.6,4.9987397]
[1733243110945,7.59e-06,3580.7,3580.6,6.10195158]
[1733243111152,7.59e-06,3580.7,3580.6,6.07403188]
[1733243111390,7.59e-06,3580.7,3580.6,4.44603188]
[1733243111598,7.59e-06,3580.7,3580.6,3.34282]
[1733243111803,7.59e-06,3580.7,3580.3,2.79299]
[1733243111954,0.30000759,3580.7,3579.7,1.628]
[1733243112148,0.30000759,3580.7,3580.0,2.79327]
[1733243112149,1.5634,3580.4,3580.0,2.79327]
[1733243112396,1.5634,3580.4,3579.5,2.79362]
[1733243112603,1.5634,3580.4,3579.6,0.43505498]
[1733243112804,1.5634,3580.4,3579.8,2.79345]
[1733243113009,1.5634,3580.4,3580.1,2.79314]
[1733243113455,1.7634,3580.4,3579.0,1.529]
[1733243113674,0.3,3580.1,3579.5,2.79364]
[1733243113908,0.3,3580.1,3579.7,2.7935]
[1733243114202,0.2,3579.9,3579.5,2.79365]
[1733243114521,1.5493,3579.8,3578.9,2.82203416]
[1733243114813,1.5493,3579.8,3579.6,2.79355]
[1733243115272,0.1,3579.5,3579.0,3.07626342]
[1733243115599,0.1,3579.5,3579.1,2.79399]
[1733243115760,0.2,3579.7,3578.6,4.29714]
[1733243115761,0.3,3579.7,3578.7,2.79425]
[1733243115963,0.2,3579.7,3579.4,2.79374]
[1733243116193,0.1,3579.6,3579.4,2.79374]
[1733243116393,0.2,3579.7,3579.5,2.79365]
[1733243116601,0.1,3579.6,3578.8,2.79416]
[1733243116810,0.1,3579.6,3579.3,2.79383]
[1733243117107,0.14514988,3580.3,3577.8,1.5356]
[1733243117108,0.1,3579.1,3577.8,1.5356]
[1733243117260,0.2,3578.8,3578.2,2.79468]
[1733243117467,0.2,3578.8,3577.9,2.79493]
[1733243117760,0.2,3578.8,3577.4,1.5375]
[1733243117761,1.5618,3578.4,3577.6,2.79509]
[1733243117955,1.5618,3578.4,3577.8,0.3074605]
[1733243118163,1.5618,3578.4,3577.4,1.5375]
[1733243118164,0.1,3578.1,3577.4,1.5375]
[1733243118382,0.3,3578.1,3577.0,1.5375]
[1733243118599,1.5618,3577.5,3576.5,1.5375]
[1733243118809,0.2,3577.4,3576.5,1.5375]
[1733243119170,0.2,3577.4,3576.7,2.79579]
[1733243119507,1.5618,3577.5,3576.6,2.79594]
[1733243119508,0.3,3577.1,3576.6,2.79594]
[1733243119983,0.3,3577.1,3576.8,2.79578]
[1733243120306,0.3,3577.1,3576.7,2.79582]
[1733243120466,0.2,3577.3,3577.1,2.79552]
[1733243120664,0.2,3577.3,3577.2,0.55]
[1733243120973,1.5618,3577.5,3577.2,0.884552]
[1733243121190,1.5618,3577.5,3577.4,3.34532]
[1733243121367,1.5618,3577.5,3577.4,0.55]
[1733243121568,1.5618,3577.5,3577.3,0.55]
[1733243121769,1.5618,3577.5,3575.9,2.79645]
[1733243121770,0.2,3577.2,3576.8,2.79577]
[1733243122306,0.2,3577.2,3576.6,2.79594]
[1733243122607,0.2,3577.2,3576.7,2.79579]
[1733243122983,0.2,3577.2,3576.8,0.55]
[1733243122984,0.1,3577.1,3576.8,0.55]
[1733243123183,1.5618,3577.5,3577.0,0.55]
[1733243123485,0.2,3577.4,3577.0,0.55]
[1733243123802,1.7618,3577.5,3576.1,2.79634]
[1733243124026,1.5618,3577.5,3576.3,2.79618]
[1733243124201,1.5618,3577.5,3576.4,0.02795216]
[1733243124535,1.5618,3577.5,3576.3,0.02795216]
[1733243124755,1.5618,3577.5,3577.1,2.79549]
[1733243124891,0.2,3577.3,3576.8,2.79574]
[1733243125229,0.2,3577.3,3576.2,0.433384]
[1733243125230,0.2,3577.1,3576.9,2.7957]
[1733243125468,0.2,3577.1,3576.8,2.79576]
[1733243125587,1.5618,3577.5,3576.6,2.79595]
[1733243125795,0.2,3577.4,3576.9,0.55]
[1733243126090,1.5618,3577.5,3576.9,0.5779536]
[1733243126287,3.0,3578.8,3576.9,0.5779536]
[1733243126288,1.5486,3578.0,3577.1,0.55]
[1733243126491,0.3,3577.9,3577.1,0.55]
[1733243126707,0.3,3577.9,3577.1,3.34555]
[1733243126898,0.3,3577.9,3577.1,0.55]
[1733243127119,1.5486,3578.0,3577.2,0.02794985]
[1733243127327,1.5486,3578.0,3577.9,3.34493]
[1733243127685,0.3,3578.3,3578.0,3.34485]
[1733243127686,0.2,3578.3,3578.0,3.34485]
[1733243127831,0.3,3578.3,3578.2,2.7947]
[1733243128152,1.6212,3578.7,3578.3,2.79462]
[1733243128435,1.6212,3578.7,3578.6,2.79438]
[1733243128436,1.5212,3578.7,3578.6,2.79438]
[1733243128630,1.7212,3579.0,3578.7,0.55]
[1733243129192,1.7212,3579.0,3578.9,2.79415]
[1733243129428,1.5212,3579.0,3578.9,2.79415]
[1733243129636,1.5538,3579.4,3578.7,0.55]
[1733243129839,1.5538,3579.4,3579.3,2.79384]
[1733243130042,0.1,3579.5,3578.9,2.79412]
[1733243130246,0.1,3579.5,3579.2,2.79391]
[1733243130536,0.1,3579.5,3579.3,2.7938]
[1733243130739,0.29045,3579.5,3578.7,2.79431]
[1733243131040,1.7045,3579.7,3579.0,2.79402]
[1733243131249,1.7045,3579.7,3579.6,2.7936]
[1733243132033,0.2,3580.0,3578.9,0.55]
[1733243132242,0.2,3580.0,3578.7,2.7943]
[1733243132243,1.6049,3580.1,3579.8,2.79339]
[1733243132408,1.7049,3580.1,3579.3,0.55]
[1733243132609,0.14514988,3580.3,3579.2,1.5564]
[1733243132836,0.14514988,3580.3,3580.2,2.79314]
[1733243133143,1.9049,3580.5,3579.9,2.79333]
[1733243133352,7.59e-06,3580.7,3580.6,2.79282]
[1733243133353,0.10000759,3580.7,3580.6,2.79282]
[1733243133537,7.59e-06,3580.7,3580.6,3.34282]
[1733243136241,7.59e-06,3580.7,3580.6,4.99442]
[1733243136439,7.59e-06,3580.7,3580.6,5.80108136]
[1733243138543,7.59e-06,3580.7,3580.6,9.01353212]
[1733243139574,0.14561729,3581.9,3581.8,3.34189]
[1733243139731,0.1,3583.1,3581.8,4.40113]
[1733243139927,0.1,3583.1,3582.9,2.79102]
[1733243140441,0.14553113,3583.0,3582.9,2.79102]
[1733243140647,0.14553113,3583.0,3582.7,2.79116]
[1733243141234,0.14553113,3583.0,3581.9,0.57790773]
[1733243141432,0.14553113,3583.0,3582.9,2.79103]
[1733243142133,0.14553113,3583.0,3582.1,0.55]
[1733243142478,0.14553113,3583.0,3582.9,2.79103]
[1733243144935,1.6594,3584.1,3583.9,2.79019]
[1733243145172,1.6594,3584.1,3583.5,2.79054]
[1733243145370,0.1,3583.9,3583.3,2.79072]
[1733243145568,0.1,3583.9,3583.5,2.79053]
[1733243145783,0.1,3583.9,3582.7,0.02790111]
[1733243146072,0.1,3583.9,3583.8,2.79033]
[1733243146231,0.1,3583.9,3583.3,2.79066]
[1733243146450,1.6594,3584.1,3583.3,0.28185611]
[1733243146669,1.6594,3584.1,3583.1,2.79087]
[1733243147042,1.6594,3584.1,3584.0,2.79017]
[1733243147245,1.6594,3584.1,3583.5,2.7905]
[1733243147458,0.02500181,3584.0,3583.9,2.79025]
[1733243147643,0.02499815,3584.1,3584.0,2.79017]
[1733243147847,0.1,3584.4,3583.5,1.6543]
[1733243148042,0.1,3584.4,3584.1,2.79005]
[1733243148244,0.1,3584.4,3583.5,1.81973]
[1733243148472,0.2,3584.1,3583.1,1.5722]
[1733243148635,0.2,3584.1,3582.7,0.36140433]
[1733243148636,0.1,3583.6,3582.9,2.79103]
[1733243148835,0.1,3583.6,3582.7,1.5722]
[1733243149052,0.2250886,3583.5,3582.9,2.79101]
[1733243149241,0.2250886,3583.5,3582.2,1.5722]
[1733243149242,1.5458,3583.2,3582.2,1.5722]
[1733243149438,1.5458,3583.2,3582.4,2.79137]
[1733243149640,1.5458,3583.2,3582.8,2.79107]
[1733243149874,0.02528964,3583.1,3582.9,2.79102]
[1733243150074,0.02528964,3583.1,3582.3,0.21149577]
[1733243150247,0.02528964,3583.1,3582.2,1.5722]
[1733243150438,0.02528964,3583.1,3582.2,4.36372]
[1733243150641,0.02528964,3583.1,3582.5,2.7913]
[1733243150958,0.02528964,3583.1,3582.8,2.79103]
[1733243151274,0.02528964,3583.1,3582.2,1.60010757]
[1733243151275,0.02528964,3583.1,3582.2,1.60010719]
[1733243151469,1.5458,3583.2,3582.9,2.79103]
[1733243151642,1.5458,3583.2,3582.6,2.79126]
[1733243151838,1.6458,3583.2,3582.8,2.7911]
[1733243152060,0.02518118,3583.1,3582.8,2.7911]
[1733243152365,0.12518118,3583.1,3583.0,2.79095]
[1733243152563,0.02518118,3583.1,3583.0,2.79095]
[1733243152987,0.1,3583.5,3583.3,2.79071]
[1733243153195,1.5004,3583.6,3583.3,2.79071]
[1733243153680,0.1,3583.4,3582.7,2.79111]
[1733243153838,0.1,3583.4,3582.8,3.070181]
[1733243154185,1.6004,3583.6,3583.2,2.79079]
[1733243154549,1.6004,3583.6,3582.8,3.070181]
[1733243154550,0.1,3583.4,3583.0,2.79094]
[1733243154854,0.02502053,3583.3,3583.1,2.79086]
[1733243155054,0.02502053,3583.3,3582.6,2.7912]
[1733243155256,0.02502053,3583.3,3583.2,2.7908]
[1733243155453,0.02502053,3583.3,3582.7,0.27912]
[1733243155454,0.1,3583.4,3582.7,0.27912]
[1733243155669,0.02497714,3583.3,3583.0,2.79092]
[1733243155867,0.3,3583.4,3583.0,2.79092]
[1733243156069,0.2,3583.1,3582.2,1.5722]
[1733243156273,6.39788248,3584.3,3581.8,1.621]
[1733243156274,0.2,3582.9,3581.8,1.621]
[1733243156571,0.2,3582.9,3582.3,2.79145]
[1733243156572,0.19408,3582.9,3582.3,2.79145]
[1733243156891,0.02478995,3582.8,3581.9,0.02791085]
[1733243157039,1.7408,3583.0,3582.5,2.79129]
[1733243157243,0.02482332,3582.9,3582.5,2.79129]
[1733243157891,0.2,3582.8,3582.3,2.79149]
[1733243158180,0.22480388,3582.8,3582.3,2.79149]
[1733243158988,0.2,3582.6,3581.8,1.621]
[1733243159158,0.2,3582.6,3582.1,2.79159]
[1733243159368,0.02468045,3582.5,3582.1,2.79159]
[1733243159544,0.02468045,3582.5,3581.9,2.79179]
[1733243159884,0.02468045,3582.5,3581.6,3.16034154]
[1733243160041,0.02468045,3582.5,3581.5,0.02791162]
[1733243160248,0.02468045,3582.5,3581.9,2.79179]
[1733243160547,0.02468045,3582.5,3581.4,1.6078]
[1733243160548,0.02468045,3582.5,3582.1,2.79165]
[1733243160751,0.02468045,3582.5,3582.4,2.79142]
[1733243161174,1.8408,3583.0,3582.1,2.81955981]
[1733243161346,1.6408,3583.0,3582.9,2.79103]
[1733243161565,1.6408,3583.0,3582.6,2.79125]